Cogmind - Beta 14 @@@ ROGUE MODE // 2025.03.22 @ 02:16:12 Player: rinsethewax Result: Destroyed by as-57334 with Assembled Blade Performance ------------- Evolutions (1) 500 Regions Visited (3) 600 Robots Destroyed (17) 85 Value Destroyed (355) 355 Prototype IDs (1) 20 Alien Tech Used (0) 0 Bonus (0) 0 TOTAL SCORE: 1560 Bonus ------- None Cogmind --------- Core Integrity 0/400 Matter 300/300 Energy 98/100 System Corruption 0% Temperature Cool (84) Movement Core (200) Ox3 Location -9/Mines Parts ------- > --- POWER (2) -------- (None) > --- PROPULSION (2) --- (None) > --- UTILITY (3) ------ Medium Storage Unit > --- WEAPON (2) ------- (None) > --- INVENTORY (10) --- Light Ion Engine Aluminum Leg Wheel Compact Wheel Armored Wheel Armored Wheel Small Storage Unit High-capacity Battery (250) Tractor Beam Light Assault Rifle Peak State ------------ > --- POWER ------------ Ion Engine Light Ion Engine > --- PROPULSION ------- Compact Wheel Armored Wheel > --- UTILITY ---------- Heat Sink Medium Storage Unit Hardened Light Armor Plating > --- WEAPON ----------- Beam Cannon Grenade Launcher > --- INVENTORY -------- Aluminum Leg Aluminum Leg Wheel Armored Wheel Small Storage Unit High-capacity Battery Light Assault Rifle Improved Assault Rifle [Rating: 12] Favorites ----------- Power Light Ion Engine Engine Light Ion Engine Propulsion Compact Wheel Leg Aluminum Leg Wheel Compact Wheel Hover Unit Hover Unit Utility Medium Storage Unit Device Heat Sink Storage Medium Storage Unit Protection Hardened Light Armor Plating Weapon Light Assault Rifle Energy Cannon Beam Cannon Ballistic Gun Light Assault Rifle Launcher Grenade Launcher Build | -11 -10 -9 -9 ------- Run | Yrd Mat Mat Min Slots Evolved 2 | . . 2 . Power 1 | . . 1 . Propulsion . | . . . . Utility 1 | . . 1 . Weapon . | . . . . Parts Attached 26 | 6 9 9 2 Power 3 | 1 . 2 . Engine 3 | 1 . 2 . Core . | . . . . Reactor . | . . . . Propulsion 13 | 2 6 3 2 Treads . | . . . . Leg 6 | . 4 . 2 Wheel 5 | 2 . 3 . Hover 2 | . 2 . . Flight . | . . . . Utility 6 | 1 2 3 . Device 2 | . 1 1 . Storage 3 | 1 1 1 . Processor . | . . . . Hackware . | . . . . Protection 1 | . . 1 . Artifact . | . . . . Weapon 4 | 2 1 1 . Energy Gun . | . . . . Energy Cannon 1 | . 1 . . Ballistic Gun 2 | 2 . . . Ballistic Cannon . | . . . . Launcher 1 | . . 1 . Special Weapon . | . . . . Impact Weapon . | . . . . Slashing Weapon . | . . . . Piercing Weapon . | . . . . Special Melee Weapon . | . . . . Unidentified Prototypes . | . . . . Parts Lost 11 | . 2 . 9 Power 2 | . . . 2 Propulsion 5 | . 2 . 3 Utility 2 | . . . 2 Weapon 2 | . . . 2 Highest Loss Streak 9 | . 2 . 9 To Critical Strikes . | . . . . Average Slot Usage (%) 94 | . 97 91 96 Engine 16 | . 14 18 20 Leg 9 | . 10 10 . Wheel 12 | . 12 12 20 Hover 1 | . 3 . . Device 7 | . 7 6 11 Storage 14 | . 19 11 11 Protection 6 | . . 11 11 Energy Cannon 8 | . 4 11 11 Ballistic Gun 11 | . 23 3 . Launcher 4 | . . 8 11 Peak Build Rating 12 | 6 7 12 11 Average Rating 8 | 3 6 9 10 On Entrance 6 | . 6 7 11 Naked Turns . | . . . . Heaviest Build 30 | 10 14 30 30 Greatest Support 32 | 26 26 32 32 Greatest Overweight (x) 3 | . 3 1 1 Average Overweight (x) . | . . . . Largest Inventory Capacity 10 | 8 8 10 10 Average Capacity 8 | 6 8 9 10 Most Carried 10 | 4 7 10 10 Average Carried 6 | . 3 7 9 Final Capacity 10 | 8 8 10 10 Final Carried 10 | . 6 10 10 Class Distribution -------------------- 100% | Mutant Dominant Class ---------------- Mutant | -10/Materials Mutant | -9/Materials Mutant | -9/Mines Resources | -11 -10 -9 -9 ----------- Run | Yrd Mat Mat Min Matter Collected 526 | 196 194 136 . Remotely . | . . . . Salvage Created 443 | . 211 232 . Parts 33 | . 19 14 . Haulers Intercepted . | . . . . Recyclers Shooed . | . . . . Parts Field Recycled . | . . . . Retrieved Matter . | . . . . Parts Self-Destructed . | . . . . Prevented . | . . . . Kills | -11 -10 -9 -9 ------- Run | Yrd Mat Mat Min Combat Hostiles Destroyed 12 | . 6 6 . Guns 4 | . 4 . . Cannons 4 | . 2 2 . AOE 4 | . . 4 . Classes Destroyed 5 | . 3 2 . Recycler 1 | . . 1 . Watcher 4 | . 3 1 . Swarmer 6 | . 3 3 . Grunt 5 | . 3 2 . Sentry 1 | . . 1 . Best Kill Streak 4 | . 3 4 . Combat Bots Only 4 | . 2 4 . Max Kills in Single Turn 3 | . 1 3 . Gunslinging . | . . . . Exploded 3 | . . 3 . Melee . | . . . . Uniques/NPCs Destroyed . | . . . . Combat | -11 -10 -9 -9 -------- Run | Yrd Mat Mat Min Hostile Shots Fired 128 | . 36 17 75 Missed 33 | . 11 5 17 Damage Taken 1523 | . 274 132 1117 Core 484 | . 71 22 391 Absorbed by Shields . | . . . . Core Remaining (%) 85 | 100 71 . . Volleys Fired 45 | . 29 15 1 Largest 2 | . 2 2 1 Hottest 90 | . 80 90 60 Shots Fired 82 | . 58 23 1 Gun 56 | . 52 4 . Cannon 22 | . 6 15 1 Launcher 4 | . . 4 . Special . | . . . . Kinetic 56 | . 52 4 . Thermal 22 | . 6 15 1 Explosive 4 | . . 4 . Electromagnetic . | . . . . Robot Hit Streak 4 | . 4 4 1 Robot Miss Streak 5 | . 4 5 . Penetration Max . | . . . . Secondary Targets 1 | . 1 . . Max Gunslinging Chain 1 | . 1 . . Shots Hit Robots 37 | . 29 7 1 Core Hits 25 | . 15 9 1 Critical Kills . | . . . . Critical Parts Destroyed 1 | . 1 . . Critical Strikes 1 | . 1 . . Destroy 1 | . 1 . . Melee Attacks . | . . . . Impact . | . . . . Slashing . | . . . . Piercing . | . . . . Sneak Attacks . | . . . . Combat Hostiles . | . . . . Follow-up Attacks . | . . . . Damage Inflicted 594 | . 270 306 18 Guns 219 | . 219 . . Cannons 191 | . 51 122 18 Explosions 170 | . . 170 . Melee . | . . . . Ramming 14 | . . 14 . Kinetic 219 | . 219 . . Thermal 191 | . 51 122 18 Explosive 170 | . . 170 . Electromagnetic . | . . . . Impact . | . . . . Slashing . | . . . . Piercing . | . . . . Highest Corruption . | . . . . Average Corruption . | . . . . Corruption Purged . | . . . . Corruption Blocked . | . . . . Overload Shots . | . . . . Overflow Damage 5 | . . 5 . Projectiles . | . . . . Explosions 5 | . . 5 . Melee . | . . . . Knockbacks . | . . . . Impact . | . . . . Kinetic . | . . . . Secondary . | . . . . Self-Inflicted Damage 7 | . . 7 . Shots . | . . . . Rammed 1 | . . 1 . Targets Rammed 2 | . . 1 1 Kicked 1 | . . . 1 Crushed . | . . . . Highest Temperature 267 | . 100 267 24 Average Temperature 77 | . 30 112 13 Received Heat Transfer 305 | . 126 39 140 Siege Activations . | . . . . Robots Corrupted . | . . . . Combat Hostiles . | . . . . Parts Fried . | . . . . Impact Corruptions . | . . . . Robots Melted . | . . . . Combat Hostiles . | . . . . Parts Melted . | . . . . Heat Transferred 407 | . 111 259 37 Parts Sabotaged . | . . . . Parts Stolen . | . . . . Parts Stripped . | . . . . Power Chain Reactions . | . . . . Alert | -11 -10 -9 -9 ------- Run | Yrd Mat Mat Min Peak Influence 231 | . 231 115 44 Initial 44 | . . 13 44 Average 64 | . 60 79 37 Maximum Alert Level 1 | . 1 . . Low Security (%) 97 | 100 93 100 100 Level 1 2 | . 6 . . Level 2 . | . . . . Level 3 . | . . . . Level 4 . | . . . . Level 5 . | . . . . High Security . | . . . . Max Security . | . . . . Squads Dispatched 4 | . 1 3 . Investigation 2 | . . 2 . Extermination . | . . . . Reinforcement 2 | . 1 1 . Assault . | . . . . Garrison . | . . . . Intercept . | . . . . Searches Triggered . | . . . . Construction Impeded 1 | . . 1 . Haulers Reinforced . | . . . . Active Scanning Responses . | . . . . Cargo Convoy Interrupts . | . . . . Stealth | -11 -10 -9 -9 --------- Run | Yrd Mat Mat Min Distress Signals 3 | . 1 2 . Communications Jammed . | . . . . Distress Signals . | . . . . Times Spotted 41 | . 11 10 20 Peak Tracking Total 19 | . 4 6 19 Tactical Retreats 1 | . 1 . . Traps | -11 -10 -9 -9 ------- Run | Yrd Mat Mat Min Traps Triggered . | . . . . Indirectly . | . . . . Trap Hack Attempts . | . . . . Triggered . | . . . . Disarmed . | . . . . Reprogrammed . | . . . . Reused . | . . . . Traps Extracted . | . . . . Installed . | . . . . Triggered . | . . . . Machines | -11 -10 -9 -9 ---------- Run | Yrd Mat Mat Min Machines Disabled 1 | . . 1 . Max in Single Turn 1 | . . 1 . Machines Repaired . | . . . . Machines Dismantled . | . . . . Machines Sabotaged . | . . . . Overloaded Fab Kills . | . . . . Hacking | -11 -10 -9 -9 --------- Run | Yrd Mat Mat Min Machines Accessed 3 | . . 3 . Terminals 1 | . . 1 . Fabricators . | . . . . Repair Stations . | . . . . Recycling Units 1 | . . 1 . Scanalyzers 1 | . . 1 . Garrison Access . | . . . . Total Hacks 7 | . . 7 . Successful 5 | . . 5 . Failed 2 | . . 2 . Catastrophic . | . . . . Database Lockouts . | . . . . Manual 4 | . . 4 . Terminals 1 | . . 1 . Fabricators . | . . . . Repair Stations . | . . . . Recycling Units 4 | . . 4 . Scanalyzers 2 | . . 2 . Garrison Access . | . . . . Terminal Hacks 1 | . . 1 . Branch Access Points 1 | . . 1 . Fabricator Hacks . | . . . . Repair Station Hacks . | . . . . Recycling Unit Hacks 3 | . . 3 . Recycle Component 2 | . . 2 . Process 1 | . . 1 . Scanalyzer 1 | . . 1 . Insert Component 1 | . . 1 . Garrison Access Hacks . | . . . . Unauthorized Hacks . | . . . . Terminals . | . . . . Fabricators . | . . . . Repair Stations . | . . . . Recycling Units . | . . . . Scanalyzers . | . . . . Garrison Access . | . . . . Data Cores Recovered . | . . . . Used . | . . . . Hacking Detections 4 | . . 4 . Full Trace Events 2 | . . 2 . Feedback Events . | . . . . Feedback Blocked . | . . . . Robot Schematics Acquired . | . . . . Robots Built . | . . . . Authchips . | . . . . Time . | . . . . Total Robot Build Rating . | . . . . Part Schematics Acquired . | . . . . Parts Built . | . . . . Authchips . | . . . . Time . | . . . . Total Part Build Rating . | . . . . Parts Repaired . | . . . . Time . | . . . . Parts Recycled 2 | . . 2 . Recycled Matter 20 | . . 20 . Retrieved Matter . | . . . . Retrieved Components . | . . . . Parts Scanalyzed . | . . . . Part Schematics Acquired . | . . . . Parts Damaged . | . . . . Bothacking | -11 -10 -9 -9 ------------ Run | Yrd Mat Mat Min Used RIF Installer . | . . . . Robots Hacked . | . . . . Non-combat . | . . . . Combat . | . . . . Robot Hacks Applied . | . . . . Relay Couplers Released . | . . . . Fabnet Peak Effective % . | . . . . Robots Rewired . | . . . . Allies Hacked . | . . . . Hacks Repelled . | . . . . Allies | -11 -10 -9 -9 -------- Run | Yrd Mat Mat Min Total Allies 2 | . . . 2 Largest Group 2 | . . . 2 Highest-Rated Group 45 | . . . 45 Highest-Rated Ally 31 | . . . 31 Total Orders . | . . . . Ally Attacks 4 | . . . 4 Total Damage 84 | . . . 84 Kills 2 | . . . 2 Allies Corrupted . | . . . . Allies Melted . | . . . . Intel | -11 -10 -9 -9 ------- Run | Yrd Mat Mat Min Robot Analysis Total . | . . . . Derelict Logs Recovered . | . . . . Drone Launches . | . . . . Drone Recoveries . | . . . . Exploration | -11 -10 -9 -9 ------------- Run | Yrd Mat Mat Min Turns Passed 965 | 42 407 441 75 Spaces Moved 637 | 40 275 269 53 Core 16 | 13 3 . . Treads . | . . . . Legs 153 | . 69 84 . Wheels 414 | 27 149 185 53 Hover 54 | . 54 . . Flight . | . . . . Fastest Speed 50 | 50 56 95 100 Average Speed 106 | 77 92 126 102 Slowest Speed 200 | 90 200 190 115 Overloaded Moves . | . . . . Propulsion Burnouts . | . . . . Robots Hopped . | . . . . Cave-ins Triggered . | . . . . Exploration Rate (%) 19 | 3 36 22 17 Regions Visited 3 Branch Regions 1 Pre-discovered Areas . | . . . . Known Exits Taken 1 | . . 1 . Unknown Exits Taken 2 | 1 1 . . Scrap Searched . | . . . . Spaces Dug . | . . . . Terrain Destroyed 22 | . . 22 . Melee . | . . . . Projectile . | . . . . AOE 22 | . . 22 . Terrain Rammed . | . . . . Walls Destroyed . | . . . . Machines Disabled . | . . . . Actions | -11 -10 -9 -9 --------- Run | Yrd Mat Mat Min Total 849 | 51 379 347 72 Wait 113 | . 57 42 14 Move 634 | 39 274 268 53 Hop . | . . . . Pick Up 24 | 6 9 8 1 Fast Attach 1 | . . 1 . Attach 15 | 6 4 4 1 Detach 4 | . 1 3 . Swap 10 | . 5 4 1 Drop 1 | . . 1 . Fire 45 | . 29 15 1 Melee . | . . . . Ram 1 | . . 1 . Kick 1 | . . . 1 Crush . | . . . . Escape Stasis . | . . . . Rewire . | . . . . Trap . | . . . . Miscellaneous . | . . . . Route ------- -11/Scrapyard -10/Materials -9/Materials -9/Mines History --------- Turn | Location | Event 17 | -11/Scrapyard | Discovered new exit (range 16) 43 | -11/Scrapyard | Entered Materials 312 | -10/Materials | Build established: Mutant 424 | -10/Materials | Discovered new exit (range 10) 450 | -10/Materials | Entered another Materials area 450 | -9/Materials | Evolved 2 slots: Power x1, Utility x1 735 | -9/Materials | Identified exit to Mines 891 | -9/Materials | Entered Mines 941 | -9/Mines | Assembled infested the area 946 | -9/Mines | Assisted by a Guerilla fighting off Assembled 965 | -9/Mines | Core integrity fell below 50% 966 | -9/Mines | Destroyed by as-57334 with Assembled Blade Last Messages --------------- Com. Wheel destroyed. as-76465 destroyed. HV Slug penetrates Wall. T-07 Excavator is excavating. TI-ZFZ(h) destroyed. as-21840 destroyed. T-07 Excavator is excavating. Ion Engine destroyed. Grenade Launcher destroyed. T-07 Excavator is excavating. Hrd. Light Armor Plating destroyed. Acquired Flexi-carbon Leg. Kicked as-88614. Lgt. Ion Engine destroyed. Heat Sink destroyed. Aluminum Leg destroyed. T-07 Excavator is excavating. Flexi-carbon Leg destroyed. Beam Cannon destroyed. Critical hit (Burn: +80). Map ----- +----------------------------------------------------+ | ????????????????????????????????????????????? | | ????????????????????????????????????????????? | | ????????????????????????????????????????????? | | ????????????????????????????????????????????? | | ????????????????????????????????????????????? | | ????????????????????????????????????????????? | | ????????????????????????????????????????????? | | ????????????????????????????????????????????? | | ????????????????????????????????????????????? | | ????????????????????????????????????????????? | | ????????????????????????????????????????????? | | ????????????????????????????????????????????? | | ????????????????????????????????????????????? | | ????????????????????????????????????????????? | | ????????????????????????????????????????????? | | ????????????????????????????????????????????? | | ????????????????????????????????????????????? | | ????????????????????????????????????????????? | | ????????????????????????????????????????????? | | ????????????????????????????????????????????? | | ????????????????????????????????????????????? | | ??????????????????????####??????????????????? | | ????????????????????### ##?????????????????? | | ???????????????????## #?????????????????? | | ??????????????????## a ### #?????????????? | | ??????????????#####a@a #?????????????? | | ?????????????## ]aaa aa #?????????????? | | ????????????# !! a a ####?????????????? | | ????????????# t # #; a #????????????????? | | ????????????# ?# ###a a a #???????????????? | | ????????????#???# #?# #??????????????? | | ????????????????# #?# a #?????????????? | | ????????????????# #?# a % ????????????? | | ????????????????# #?# a ??????????? | | ???????????????##!##= %z %% ?????????? | | ???????????????#=%* ! ## ????????? | | ???????????????# #### ##?# ????????? | | ???????????????# #??######??? ##????????? | | ???????????????# #???????????? #??????????? | | ???????????????# #???????????? ????????????? | | ???????????????# #??????????????????????????? | | ???????????????# #??????????????????????????? | | ???????????????# #??????????????????????????? | | ??????????????## #??????????????????????????? | | ?????????????## ##?????????????????????????? | | ?????????????# #?????????????????????????? | | ?????????????# ##????????????????????????? | | ???????????### ##???????????????????????? | | ???????????# ####????????????????????? | | ???????????# ### ##???????????????????? | +----------------------------------------------------+ Best States ------------- Heat Dissipation 38 Energy Generation 15 Energy Capacity 375 Matter Stores 300 Matter Capacity 300 Sight Range 16 Robot Scan Range 14 Terrain Scan Density 10 Armor Coverage 150 Evasion (%) 53 Item Schematics ----------------- None Robot Schematics ------------------ None Fabricated ------------ Nothing Alien Tech Used ----------------- None Achievements -------------- Safety First Challenges ------------ None Game ------ Seed DecoderImpulseInverter Manual? 0 Play Time 00:22:38 Cumulative 3.1 hours Start 2025.03.22 @ 01:53:02 End 2025.03.22 @ 02:16:12 Sessions 1 Manual Loads 0 Difficulty Rogue Special Mode None Game No. 5 Rogue 5 Adventurer 0 Explorer 0 Win Type - Total 0 Types 0/0/0/0/0/0/0/0/0 Lore% 2 Gallery% 6 Achievement% 6 Wizard Run 0 Options --------- Layout 0 ASCII 1 Keyboard 0 Movement Mouse Keybinds 0 Fullscreen 2 Font 36/Smallcaps Map View 76x50 Zoom Use 0% Tactical HUD 0 Map Filters NONE Filters NONE Steam 1 RUN: eabad9ac-b41e-41bf-9bfc-e9215f860dea